lending/lending_fUSD_20260206
["ID","MTS","AMOUNT","RATE_DAILY","PERIOD"]
[404647480,1770377440258,-151.0,0.00011506,2]
[404647481,1770377440270,-151.0,0.00011506,2]
[404647482,1770377440280,-151.0,0.00011506,2]
[404647483,1770377440290,-151.0,0.00011506,2]
[404647484,1770377440300,-151.0,0.00011506,2]
[404647485,1770377440310,-151.0,0.00011506,2]
[404647486,1770377440321,-151.0,0.00011506,2]
[404647487,1770377440331,-151.0,0.00011506,2]
[404647488,1770377440341,-151.0,0.00011506,2]
[404647489,1770377440351,-151.0,0.00011506,2]
[404647490,1770377440360,-151.0,0.00011506,2]
[404647491,1770377440370,-151.0,0.00011506,2]
[404647492,1770377440379,-151.0,0.00011506,2]
[404647493,1770377440389,-151.0,0.00011506,2]
[404647494,1770377440398,-151.0,0.00011506,2]
[404647495,1770377440407,-151.0,0.00011506,2]
[404647496,1770377440416,-97982.9449,0.00011565,2]
[404647497,1770377440426,-626.3057194,0.0001157,2]
[404647498,1770377440436,-88852.0,0.000116,2]
[404647499,1770377440448,-150.0,0.00011605,2]
[404647500,1770377440458,-166.66,0.00011646,2]
[404647501,1770377440467,-500.0,0.00011686,2]
[404647502,1770377440477,-638.09,0.0001173,2]
[404647503,1770377440487,-166.66,0.00011891,2]
[404647504,1770377440496,-638.09,0.00012004,2]
[404647505,1770377440505,-9247.51,0.00012055,2]
[404647506,1770377440514,-241.00287784,0.00012119,2]
[404647507,1770377440523,-300.0,0.00012119,2]
[404647508,1770377440533,-250.0,0.00012119,2]
[404647509,1770377440542,-300.0,0.00012119,2]
[404647510,1770377440552,-250.0,0.00012119,2]
[404647511,1770377440561,-500.0,0.00012119,2]
[404647512,1770377440571,-166.66,0.00012137,2]
[404647513,1770377440580,-250.0,0.00012208,2]
[404647514,1770377440590,-255.0,0.00012232,2]
[404647515,1770377440600,-638.09,0.00012278,2]
[404647516,1770377440609,-1680.0,0.00012299,2]
[404647517,1770377440618,-166.66,0.00012382,2]
[404647518,1770377440627,-638.13,0.00012552,2]
[404647519,1770377440883,-166.66,0.00012627,2]
[404647520,1770377440893,-426.14,0.00012746,2]
[404647521,1770377440903,-166.66,0.00012872,2]
[404647522,1770377440914,-626.3057194,0.00012915,2]
[404647523,1770377440923,-1210.83529054,0.00012967,2]
[404647524,1770377440932,-1000.0,0.00013,2]
[404647525,1770377440942,-5356.41162276,0.0001305,2]
[404647526,1770377440955,-200.0,0.00013132,2]
[404647527,1770377440964,-273.644763,0.00013319,5]
[404647528,1770377440974,-433.0,0.00013384,2]
[404647529,1770377440983,-3240.0,0.00013425,2]
[404647530,1770377440992,-766.0,0.00013529,2]
[404647531,1770377441002,-200.0,0.00013699,2]
[404647532,1770377441011,-626.3057194,0.0001426,2]
[404647533,1770377441021,-426.14,0.00014339,2]
[404647534,1770377441030,-1210.83529054,0.00014568,2]
[404647535,1770377441040,-352.93,0.00014616,2]
[404647536,1770377441052,-281.0,0.00014636,2]
[404647537,1770377441062,-5783.07047187,0.0001494,2]
[404647538,1770377441071,-250.0,0.00015,2]
[404647539,1770377441080,-23578.38111593,0.0001502,2]
[404647540,1770377441092,-168.16,0.00015158,2]
[404647541,1770377441102,-1000.0,0.00015496,2]
[404647542,1770377441111,-626.3057194,0.00015606,2]
[404647543,1770377441123,-426.14,0.00015932,2]
[404647544,1770377441134,-18430.79,0.00015984,2]
[404647545,1770377441143,-1210.83529054,0.00016168,2]
[404647546,1770377441152,-6667.03856183,0.000162,5]
[404647547,1770377441161,-500.0,0.00016473,2]
[404647548,1770377441171,-500.0,0.00016473,2]
[404647549,1770377441180,-64493.54113682,0.00017,2]
[404647550,1770377441189,-1000.0,0.00017021,2]
[404647551,1770377441199,-1000.0,0.00017021,2]
[404647552,1770377441208,-1000.0,0.00017433,2]
[404647553,1770377441219,-426.14,0.00017525,2]
[404647554,1770377441228,-155.59252251,0.00017556,2]
[404647555,1770377441238,-1500.0,0.00017568,2]
[404647556,1770377441248,-1500.0,0.00017568,2]
[404647557,1770377441257,-1210.83529054,0.00017769,2]
[404647558,1770377441266,-500.0,0.00017973,2]
[404647559,1770377441275,-232.48282443,0.00017973,2]
[404647560,1770377441284,-614.17494655,0.00017973,2]
[404647561,1770377441293,-500.0,0.00017973,2]
[404647562,1770377441302,-500.0,0.00017973,2]
[404647563,1770377441311,-500.0,0.00017973,2]
[404647564,1770377441320,-500.0,0.00017973,2]
[404647565,1770377441330,-394.85489861,0.00017973,2]
[404647566,1770377441340,-500.0,0.00017973,2]
[404647567,1770377441350,-161.65464171,0.00017973,2]
[404647568,1770377441358,-500.0,0.00017973,2]
[404647569,1770377441367,-162.09631962,0.00017973,2]
[404647570,1770377441379,-500.0,0.00017973,2]
[404647571,1770377441389,-500.0,0.00017973,2]
[404647572,1770377441398,-500.0,0.00017973,2]
[404647573,1770377441409,-500.0,0.00017973,2]
[404647574,1770377441419,-500.0,0.00017973,2]
[404647575,1770377441429,-500.0,0.00017973,2]
[404647576,1770377441438,-501.94112039,0.00017973,2]
[404647577,1770377441448,-500.0,0.00017973,2]
[404647578,1770377441459,-500.0,0.00017973,2]
[404647579,1770377441470,-500.0,0.00017973,2]
[404647580,1770377441481,-500.0,0.00017973,2]
[404647581,1770377441491,-160.38138244,0.00017973,2]
[404647582,1770377441502,-500.0,0.00017973,2]
[404647583,1770377441512,-500.0,0.00017973,2]
[404647584,1770377441522,-433.53666957,0.00017973,2]
[404647585,1770377441530,-500.0,0.00017973,2]
[404647586,1770377441539,-586.89023392,0.00017973,2]
[404647587,1770377441549,-333.90054396,0.00017973,2]
[404647588,1770377441558,-500.0,0.00017973,2]
[404647589,1770377441567,-500.0,0.00017973,2]
[404647590,1770377441577,-208.57318794,0.00017973,2]
[404647591,1770377441586,-500.0,0.00017973,2]
[404647592,1770377441596,-276.31975293,0.00017973,2]
[404647593,1770377441605,-182.684782,0.00017973,2]
[404647594,1770377441614,-500.0,0.00017973,2]
[404647595,1770377441624,-500.0,0.00017973,2]
[404647596,1770377441633,-500.0,0.00017973,2]
[404647597,1770377441642,-500.0,0.00017973,2]
[404647598,1770377441652,-500.0,0.00017973,2]
[404647599,1770377441661,-500.0,0.00017973,2]
[404647600,1770377441671,-500.0,0.00017973,2]
[404647601,1770377441682,-500.0,0.00017973,2]
[404647602,1770377441692,-500.0,0.00017973,2]
[404647603,1770377441701,-500.0,0.00017973,2]
[404647604,1770377441720,-500.0,0.00017973,2]
[404647605,1770377441730,-265.91534322,0.00017973,2]
[404647606,1770377441739,-500.0,0.00017973,2]
[404647607,1770377441750,-307.65242929,0.00017973,2]
[404647608,1770377441759,-500.0,0.00017973,2]
[404647609,1770377441768,-500.0,0.00017973,2]
[404647610,1770377441780,-500.0,0.00017973,2]
[404647611,1770377441790,-500.0,0.00017973,2]
[404647612,1770377441808,-500.0,0.00017973,2]
[404647613,1770377441819,-500.0,0.00017973,2]
[404647614,1770377441830,-501.17265493,0.00017973,2]
[404647615,1770377441839,-500.8383319,0.00017973,2]
[404647616,1770377441849,-500.0,0.00017973,2]
[404647617,1770377441859,-382.63613861,0.00017973,2]
[404647618,1770377441869,-500.0,0.00017973,2]
[404647619,1770377441879,-500.0,0.00017973,2]
[404647620,1770377441889,-500.0,0.00017973,2]
[404647621,1770377441898,-500.0,0.00017973,2]
[404647622,1770377441908,-393.28026372,0.00017973,2]
[404647623,1770377441917,-500.0,0.00017973,2]
[404647624,1770377441927,-500.0,0.00017973,2]
[404647625,1770377441936,-500.93151703,0.00017973,2]
[404647626,1770377441946,-500.0,0.00017973,2]
[404647627,1770377441955,-500.0,0.00018116,2]
[404647628,1770377441965,-500.0,0.00018116,2]
[404647629,1770377441974,-5783.07047187,0.00018567,2]
[404647630,1770377441984,-23578.38111593,0.00018638,2]
[404647631,1770377441993,-200.0,0.00019082,2]
[404647632,1770377442002,-426.14,0.00019119,2]
[404647633,1770377442012,-1210.83529054,0.00019369,2]
[404647634,1770377442022,-1000.0,0.0001937,2]
[404647635,1770377442032,-352.93,0.00020462,2]
[404647636,1770377442041,-155.59252251,0.00020482,2]
[404647637,1770377442056,-1210.83529054,0.0002097,2]
[404647638,1770377442067,-1000.0,0.00021307,2]
[404647639,1770377442077,-5000.0,0.00021918,2]
[404647640,1770377442087,-752.78,0.00022,7]
[404647641,1770377442097,-30380.67,0.00022,2]
[404647642,1770377442107,-5783.07047187,0.00022195,2]
[404647643,1770377442119,-23578.38111593,0.00022255,2]
[404647644,1770377442133,-9318.88,0.00022466,2]
[404647645,1770377442145,-1210.83529054,0.0002257,2]
[404647646,1770377442156,-1335.0,0.00022647,2]
[404647647,1770377442167,-3483.0,0.00022647,2]
[404647648,1770377442179,-6582.0,0.00022647,2]
[404647649,1770377442188,-160.0,0.00023,2]
[404647650,1770377442199,-1000.0,0.00023244,2]
[404647651,1770377442209,-155.59252251,0.00023407,2]
[404647652,1770377442218,-183.03,0.00023629,2]
[404647653,1770377442227,-1210.83529054,0.00024171,2]
[404647654,1770377442238,-183.03,0.00024338,2]
[404647655,1770377442247,-1000.0,0.00024658,2]
[404647656,1770377442257,-183.03,0.00025068,2]
[404647657,1770377442267,-190.4,0.00025478,2]
[404647658,1770377442280,-3483.0,0.00025647,2]
[404647659,1770377442291,-6582.0,0.00025647,2]
[404647660,1770377442301,-30380.67,0.000257,2]
[404647661,1770377442312,-1210.83529054,0.00025771,2]
[404647662,1770377442322,-5783.07047187,0.00025823,2]
[404647663,1770377442332,-23578.38111593,0.00025873,2]
[404647664,1770377442342,-155.59252251,0.00026333,2]
[404647665,1770377442352,-150.0,0.00027369,2]
[404647666,1770377442362,-1210.83529054,0.00027372,2]
[404647667,1770377442371,-721.34,0.00027397,30]
[404647668,1770377442381,-300.0,0.00027397,2]
[404647669,1770377442390,-750.0,0.00027397,20]
[404647670,1770377442400,-150.0,0.00027518,30]
[404647671,1770377442410,-153.044089,0.00027518,30]
[404647672,1770377442420,-156.088178,0.00027518,30]
[404647673,1770377442430,-159.132267,0.00027518,30]
[404647674,1770377442439,-162.176356,0.00027518,30]
[404647675,1770377442450,-165.220445,0.00027518,30]
[404647676,1770377442461,-168.264535,0.00027518,30]
[404647677,1770377442470,-171.308624,0.00027518,30]
[404647678,1770377442480,-174.352713,0.00027518,30]
[404647679,1770377442490,-177.396802,0.00027518,30]
[404647680,1770377442501,-3478.0,0.00028647,2]
[404647681,1770377442512,-190.4,0.00028903,2]
[404647682,1770377442523,-1210.83529054,0.00028972,2]
[404647683,1770377442534,-5783.07047187,0.0002945,2]
[404647684,1770377442544,-23578.38111593,0.0002949,2]
[404647685,1770377442555,-871.88,0.0003,15]
[404647686,1770377442566,-204.69,0.00030289,2]
[404647688,1770377442579,-1210.83529054,0.00030573,2]
[404647690,1770377442588,-1210.83529054,0.00032173,2]
[404647691,1770377442599,-30380.67,0.000322,2]
[404647692,1770377442608,-721.34,0.00032232,30]
[404647693,1770377442618,-190.4,0.00032327,2]
[404647695,1770377442628,-1364.153343,0.00032522,30]
[404647696,1770377442639,-344.89,0.00032877,2]
[404647697,1770377442650,-356.32,0.000329,14]
[404647698,1770377442663,-157.4,0.000329,14]
[404647699,1770377442673,-1292.78,0.000329,2]
[404647700,1770377442684,-23578.38111593,0.00033108,2]
[404647701,1770377442695,-163.0,0.00033442,11]
[404647702,1770377442705,-9318.88,0.00033699,2]
[404647703,1770377442714,-1210.83529054,0.00033774,2]
[404647704,1770377442724,-150.1,0.00033956,2]
[404647705,1770377442733,-152.0,0.00035344,3]
[404647706,1770377442743,-1210.83529054,0.00035374,2]
[404647707,1770377442751,-190.4,0.00035752,2]
[404647708,1770377442760,-2000.0,0.000359,2]
[404647709,1770377442769,-1938.22,0.00035962,43]
[404647710,1770377442778,-161.263,0.00035962,43]
[404647711,1770377442788,-30380.67,0.00036,2]
[404647712,1770377442796,-839.0,0.00036304,11]
[404647713,1770377442805,-157.4,0.000364,14]
[404647714,1770377442815,-1292.78,0.000364,2]
[404647715,1770377442824,-356.32,0.000367,14]
[404647716,1770377442833,-23578.38111593,0.00036725,2]
[404647717,1770377442843,-300.0,0.000369,13]
[404647718,1770377442853,-1210.83529054,0.00036975,2]
[404647719,1770377442862,-721.34,0.00037067,120]
[404647720,1770377442871,-195.58902898,0.000372,120]
[404647721,1770377442880,-1535.0,0.000384,11]
[404647722,1770377442889,-190.4,0.00039176,2]
[404647723,1770377442898,-3489.0,0.00039317,11]
[404647724,1770377442907,-1292.78,0.000394,30]
[404647725,1770377442916,-2000.0,0.000396,2]
[404647726,1770377442925,-356.32,0.000396,14]
[404647727,1770377442934,-1555.09520892,0.00039644,2]
[404647728,1770377442943,-377.31136206,0.00039644,2]
[404647729,1770377442952,-30380.67,0.000397,2]
[404647730,1770377442962,-5800.0,0.000397,14]
[404647731,1770377442971,-4073.69111168,0.00039704,14]
[404647732,1770377442980,-5800.0,0.00039709,14]
[404647733,1770377442989,-5800.0,0.00039718,14]
[404647734,1770377442998,-5800.0,0.00039726,14]
[404647735,1770377443007,-1364.153343,0.00040027,60]
[404647736,1770377443018,-1210.83529054,0.00040176,2]
[404647737,1770377443027,-548.0,0.000402,5]
[404647738,1770377443041,-23578.38111593,0.00040343,15]
[404647739,1770377443053,-300.0,0.00040921,10]
[404647740,1770377443063,-300.0,0.00040929,10]
[404647741,1770377443072,-300.0,0.00040938,10]
[404647742,1770377443082,-25000.0,0.00041041,15]
[404647743,1770377443091,-25000.0,0.0004105,15]
[404647744,1770377443101,-25000.0,0.00041059,15]
[404647745,1770377443111,-510.0,0.0004106,10]
[404647746,1770377443123,-25000.0,0.00041067,15]
[404647747,1770377443133,-300.0,0.00041068,22]
[404647748,1770377443143,-1000.0,0.00041081,14]
[404647749,1770377443152,-2791.39,0.00041096,120]
[404647750,1770377443162,-200.0,0.00041099,120]
[404647751,1770377443171,-5000.0,0.000416,120]
[404647752,1770377443180,-300.0,0.00041699,30]
[404647753,1770377443190,-10408.0,0.000417,117]
[404647754,1770377443200,-356.32,0.000417,14]
[404647755,1770377443209,-1210.83529054,0.00041776,2]
[404647756,1770377443219,-1292.78,0.000418,30]
[404647757,1770377443229,-721.34,0.00041902,120]
[404647758,1770377443239,-210.24315938,0.00042072,16]
[404647759,1770377443248,-300.0,0.00042099,30]
[404647760,1770377443258,-163.0,0.00042172,16]
[404647761,1770377443267,-200.0,0.00042186,2]
[404647762,1770377443277,-30380.67,0.000422,2]
[404647763,1770377443286,-200.0,0.00042336,120]
[404647764,1770377443296,-300.0,0.00042475,30]
[404647765,1770377443306,-600.0,0.00042476,60]
[404647767,1770377443315,-500.0,0.00042476,60]
[404647768,1770377443325,-1000.0,0.00042476,60]
[404647770,1770377443335,-210.24315935,0.00042545,17]
[404647773,1770377443345,-300.0,0.00042582,30]
[404647776,1770377443355,-69124.0,0.00042583,30]
[404647780,1770377443366,-875.60758414,0.0004268,7]
[404647783,1770377443375,-510.0,0.0004283,10]
[404647786,1770377443385,-839.0,0.00042883,16]
[404647788,1770377443395,-700.0,0.000429,15]
[404647790,1770377443404,-800.56114078,0.000429,120]
[404647792,1770377443414,-112999.999999,0.0004295,120]
[404647795,1770377443424,-153.7023,0.00043,10]
[404647798,1770377443438,-160.0,0.00043,30]
[404647800,1770377443447,-182.0,0.00043,120]
[404647803,1770377443457,-160.0,0.00043,120]
[404647805,1770377443468,-1081.70201827,0.00043,120]
[404647806,1770377443477,-210.24315935,0.00043019,17]
[404647807,1770377443488,-52999.44366719,0.00043022,30]
[404647808,1770377444317,-6582.0,0.00028647,2]
[404647809,1770377444328,-6582.0,0.00031647,2]
[404647810,1770377444337,-6582.0,0.00034647,2]
[404647811,1770377444347,-6582.0,0.00037647,2]
[404647812,1770377444356,-6582.0,0.00040647,2]
[404647813,1770377444366,-16124.55633281,0.00043022,30]
[404647814,1770377444376,-600.0,0.00043024,60]
[404647815,1770377444386,-1000.0,0.00043024,60]
[404647816,1770377444395,-613.73590573,0.0004309,30]
[404647817,1770377444406,-500.0,0.0004309,60]
[404647818,1770377444417,-500.0,0.0004309,60]
[404647819,1770377444426,-500.0,0.0004309,60]
[404647820,1770377444437,-1100.0,0.000431,15]
[404647821,1770377444447,-150.0,0.00043179,120]
[404647822,1770377444457,-1500.0,0.000432,15]
[404647823,1770377444467,-200.0,0.00043218,2]
[404647824,1770377444479,-516.96169518,0.00043287,120]
[404647825,1770377444494,-540.12717302,0.00043287,120]
[404647826,1770377444504,-500.0,0.00043287,120]
[404647827,1770377444513,-500.0,0.00043287,120]
[404647828,1770377444525,-500.0,0.00043287,120]
[404647829,1770377444536,-500.0,0.00043287,120]
[404647830,1770377444545,-500.0,0.00043287,120]
[404647831,1770377444555,-500.0,0.00043287,120]
[404647832,1770377444564,-500.0,0.00043287,120]
[404647833,1770377444574,-500.0,0.00043287,120]
[404647834,1770377444584,-500.0,0.00043287,120]
[404647835,1770377444593,-291.76187416,0.00043287,120]
[404647836,1770377444602,-500.0,0.00043287,120]
[404647837,1770377444619,-500.0,0.00043287,120]
[404647838,1770377444630,-500.0,0.00043287,120]
[404647839,1770377444641,-233.46223457,0.00043287,120]
[404647840,1770377444653,-500.0,0.00043287,120]
[404647841,1770377444664,-500.0,0.00043287,120]
[404647842,1770377444674,-500.0,0.00043287,120]
[404647843,1770377444687,-275.00200599,0.00043287,120]
[404647844,1770377444698,-500.0,0.00043287,120]
[404647845,1770377444710,-500.0,0.00043287,120]
[404647846,1770377444723,-500.0,0.00043287,120]
[404647847,1770377444733,-588.2621612,0.00043287,120]
[404647848,1770377444744,-496.14892646,0.00043287,120]
[404647849,1770377444755,-500.0,0.00043287,120]
[404647850,1770377444766,-500.0,0.00043287,120]
[404647851,1770377444777,-500.0,0.00043287,120]
[404647852,1770377444787,-208.53381368,0.00043287,120]
[404647853,1770377444798,-500.0,0.00043287,120]
[404647854,1770377444808,-390.82085893,0.00043287,120]
[404647855,1770377444818,-500.0,0.00043287,120]
[404647856,1770377444829,-549.01134671,0.00043287,120]
[404647857,1770377444840,-500.0,0.00043287,120]
[404647858,1770377444850,-500.0,0.00043287,120]
[404647859,1770377444861,-500.0,0.00043287,120]
[404647860,1770377444872,-160.39285163,0.00043287,120]
[404647861,1770377444882,-267.27719603,0.00043287,120]
[404647862,1770377444893,-500.0,0.00043287,120]
[404647863,1770377444903,-500.0,0.00043287,120]
[404647864,1770377444914,-600.87763871,0.00043287,120]
[404647865,1770377444924,-500.0,0.00043287,120]
[404647866,1770377444935,-500.0,0.00043287,120]
[404647867,1770377444946,-500.0,0.00043287,120]
[404647868,1770377444957,-500.0,0.00043287,120]
[404647869,1770377444968,-250.89764429,0.00043287,120]
[404647870,1770377444979,-418.11619498,0.00043287,120]
[404647871,1770377444989,-500.0,0.00043287,120]
[404647872,1770377445000,-500.0,0.00043287,120]
[404647873,1770377445010,-376.60203325,0.00043287,120]
[404647874,1770377445020,-542.23536721,0.00043287,120]
[404647875,1770377445031,-500.0,0.00043287,120]
[404647876,1770377445042,-500.0,0.00043287,120]
[404647877,1770377445057,-500.0,0.00043287,120]
[404647878,1770377445068,-500.0,0.00043287,120]
[404647879,1770377445080,-500.0,0.00043287,120]
[404647880,1770377445091,-413.36964496,0.00043287,120]
[404647881,1770377445102,-500.0,0.00043287,120]
[404647882,1770377445113,-577.17592284,0.00043287,120]
[404647883,1770377445127,-500.0,0.00043287,120]
[404647884,1770377445137,-412.98099351,0.00043287,120]
[404647885,1770377445153,-161.58788327,0.00043287,120]
[404647886,1770377445164,-500.0,0.00043287,120]
[404647887,1770377445175,-529.26539801,0.00043287,120]
[404647888,1770377445185,-500.0,0.00043287,120]
[404647889,1770377445194,-609.217717,0.00043287,120]
[404647890,1770377445205,-500.0,0.00043287,120]
[404647891,1770377445215,-587.87551391,0.00043287,120]
[404647892,1770377445225,-500.0,0.00043287,120]
[404647893,1770377445235,-608.66650106,0.00043287,120]
[404647894,1770377445245,-537.64937941,0.00043287,120]
[404647895,1770377445256,-500.0,0.00043287,120]
[404647896,1770377445265,-608.89734154,0.00043287,120]
[404647897,1770377445275,-352.49121076,0.00043287,120]
[404647898,1770377445285,-550.35790611,0.00043287,120]
[404647899,1770377445296,-564.08324354,0.00043287,120]
[404647900,1770377445307,-500.0,0.00043287,120]
[404647901,1770377445318,-500.0,0.00043287,120]
[404647902,1770377445329,-497.29176409,0.00043287,120]
[404647903,1770377445339,-500.0,0.00043287,120]
[404647904,1770377445350,-500.0,0.00043287,120]
[404647905,1770377445360,-624.61812424,0.00043287,120]
[404647906,1770377445370,-500.0,0.00043287,120]
[404647907,1770377445380,-533.73519231,0.00043287,120]
[404647908,1770377445393,-633.63878228,0.00043287,120]
[404647909,1770377445404,-500.0,0.00043287,120]
[404647910,1770377445416,-504.42663646,0.00043287,120]
[404647911,1770377445427,-200.0,0.00043287,120]
[404647912,1770377445439,-500.0,0.00043287,120]
[404647913,1770377445450,-500.0,0.00043287,120]
[404647914,1770377445461,-500.0,0.00043287,120]
[404647915,1770377445472,-546.59280952,0.00043287,120]
[404647916,1770377445484,-500.0,0.00043287,120]
[404647917,1770377445497,-508.15142169,0.00043287,120]
[404647918,1770377445507,-500.0,0.00043287,120]
[404647919,1770377445519,-500.0,0.00043287,120]
[404647920,1770377445531,-600.01395605,0.00043287,120]
[404647921,1770377445542,-500.0,0.00043287,120]
[404647922,1770377445553,-606.14288855,0.00043287,120]
[404647923,1770377445564,-500.0,0.00043287,120]
[404647924,1770377445576,-527.98814434,0.00043287,120]
[404647925,1770377445587,-500.0,0.00043287,120]
[404647926,1770377445597,-433.94553047,0.00043287,120]
[404647927,1770377445612,-500.0,0.00043287,120]
[404647928,1770377445631,-500.0,0.00043287,120]
[404647929,1770377445641,-579.85256323,0.00043287,120]
[404647930,1770377445651,-629.75425446,0.00043287,120]
[404647931,1770377445662,-500.0,0.00043287,120]
[404647932,1770377445672,-463.47120649,0.00043287,120]
[404647933,1770377445683,-500.0,0.00043287,120]
[404647934,1770377445694,-500.0,0.00043287,120]
[404647935,1770377445704,-500.0,0.00043287,120]
[404647936,1770377445714,-500.0,0.00043287,120]
[404647937,1770377445724,-500.0,0.00043287,120]
[404647938,1770377445734,-500.0,0.00043287,120]
[404647939,1770377445744,-500.0,0.00043287,120]
[404647941,1770377445755,-500.0,0.00043287,120]
[404647942,1770377445765,-500.0,0.00043287,120]
[404647943,1770377445776,-500.0,0.00043287,120]
[404647944,1770377445786,-500.0,0.00043287,120]
[404647946,1770377445796,-500.0,0.00043287,120]
[404647947,1770377445806,-384.38731226,0.00043287,120]
[404647948,1770377445817,-500.0,0.00043287,120]
[404647949,1770377445827,-500.0,0.00043287,120]
[404647950,1770377445838,-500.0,0.00043287,120]
[404647951,1770377445850,-500.0,0.00043287,120]
[404647952,1770377445860,-259.39384571,0.00043287,120]
[404647953,1770377445871,-500.0,0.00043287,2]
[404647954,1770377445883,-500.0,0.00043287,2]
[404647955,1770377445894,-234.89807076,0.00043287,2]
[404647956,1770377445904,-297.66693812,0.00043287,120]
[404647957,1770377445914,-500.0,0.00043287,120]
[404647959,1770377445924,-276.2577,0.00043287,120]
[404647961,1770377445935,-312.04301128,0.00043287,120]
[404647962,1770377445945,-1879.23,0.00043287,120]
[404647963,1770377445956,-1879.23,0.00043287,120]
[404647964,1770377445967,-1879.23,0.00043287,120]
[404647965,1770377445978,-1879.23,0.00043287,120]
[404647966,1770377445988,-1879.23,0.00043287,120]
[404647967,1770377446001,-1879.23,0.00043287,120]
[404647968,1770377446012,-1879.23,0.00043287,120]
[404647969,1770377446024,-1879.23,0.00043287,120]
[404647970,1770377446037,-159.25462986,0.00043287,120]
[404647971,1770377446049,-1879.23,0.00043287,120]
[404647972,1770377446064,-1879.23,0.00043287,120]
[404647973,1770377446076,-1879.23,0.00043287,120]
[404647974,1770377446085,-1879.23,0.00043287,120]
[404647975,1770377446095,-1879.23,0.00043287,120]
[404647976,1770377446105,-1879.23,0.00043287,120]
[404647977,1770377446116,-1879.23,0.00043287,120]
[404647978,1770377446128,-1879.23,0.00043287,120]
[404647979,1770377446139,-1879.23,0.00043287,120]
[404647980,1770377446149,-1879.23,0.00043287,120]
[404647981,1770377446160,-1879.23,0.00043287,120]
[404647982,1770377446170,-500.0,0.00043287,120]
[404647983,1770377446181,-500.0,0.00043287,120]
[404647984,1770377446191,-500.0,0.00043287,120]
[404647985,1770377446202,-500.0,0.00043287,120]
[404647986,1770377446212,-500.0,0.00043287,120]
[404647987,1770377446224,-500.0,0.00043287,120]
[404647988,1770377446235,-500.0,0.00043287,120]
[404647989,1770377446246,-500.0,0.00043287,120]
[404647990,1770377446256,-500.0,0.00043287,120]
[404647991,1770377446268,-612.22844647,0.00043287,120]
[404647992,1770377446279,-500.0,0.00043287,120]
[404647993,1770377446290,-500.0,0.00043287,120]
[404647994,1770377446302,-500.0,0.00043287,120]
[404647995,1770377446311,-543.63000319,0.00043287,120]
[404647996,1770377446321,-500.0,0.00043287,120]
[404647997,1770377446332,-215.39643687,0.00043287,120]
[404647998,1770377446344,-500.0,0.00043287,120]
[404647999,1770377446355,-550.84971992,0.00043287,120]
[404648000,1770377446367,-500.0,0.00043287,120]
[404648001,1770377446378,-500.0,0.00043287,120]
[404648002,1770377446389,-500.0,0.00043287,120]
[404648003,1770377446399,-500.0,0.00043287,120]
[404648004,1770377446409,-500.0,0.00043287,120]
[404648005,1770377446418,-626.83034008,0.00043287,120]
[404648007,1770377446428,-500.0,0.00043287,120]
[404648008,1770377446438,-623.94613472,0.00043287,120]
[404648009,1770377446448,-500.0,0.00043287,120]
[404648010,1770377446458,-500.0,0.00043287,120]
[404648011,1770377446467,-500.0,0.00043287,120]